Cogmind - Beta 17.1 @@@ ROGUE MODE // 2026.08.25 @ 13:24:15 Player: ATOM Result: Smashed by cave-in Performance ------------- Evolutions (0) 0 Regions Visited (2) 400 Robots Destroyed (23) 115 Value Destroyed (654) 654 Prototype IDs (4) 80 Alien Tech Used (0) 0 Bonus (25) 25 TOTAL SCORE: 1274 Bonus ------- Follower Combat Kills 25 Cogmind --------- Core Integrity 0/250 Matter 300/300 Energy 125/125 System Corruption 2% Temperature Cool (0) Movement Treading (160) Location -10/Mines Parts ------- > --- POWER (1) -------- Light Ion Engine > --- PROPULSION (2) --- Light Treads Light Treads > --- UTILITY (2) ------ Large Storage Unit > --- WEAPON (2) ------- Light Cannon > --- INVENTORY (15) --- Wheel Heat Sink Heat Sink Visual Processing Unit Sensor Array Signal Interpreter Seismic Detector Power Shielding Propulsion Shielding Weapon Shielding Light Armor Plating Beamcaster Beam Cannon Assault Rifle Peak State ------------ > --- POWER ------------ Light Ion Engine > --- PROPULSION ------- Light Treads Light Treads > --- UTILITY ---------- Large Storage Unit Targeting Computer > --- WEAPON ----------- Beamcaster Light Cannon > --- INVENTORY -------- Wheel Heat Sink Heat Sink Visual Processing Unit Sensor Array Signal Interpreter Seismic Detector Power Shielding Propulsion Shielding Weapon Shielding Light Armor Plating Beam Cannon Assault Rifle [Rating: 12] Favorites ----------- Power Light Ion Engine Engine Light Ion Engine Power Core Light Nuclear Core Propulsion Light Treads Treads Light Treads Wheel Compact Wheel Utility Large Storage Unit Storage Large Storage Unit Processor Targeting Computer Weapon Medium Laser Energy Gun Medium Laser Energy Cannon Beam Cannon Ballistic Gun Assault Rifle Ballistic Cannon Light Cannon Special Weapon Mining Laser Build | -11 -10 -10 ------- Run | Yrd Mat Min Slots Evolved . | . . . Power . | . . . Propulsion . | . . . Utility . | . . . Weapon . | . . . Parts Attached 22 | 6 11 5 Power 4 | 1 2 1 Engine 3 | 1 1 1 Core 1 | . 1 . Reactor . | . . . Propulsion 6 | 2 3 1 Treads 3 | . 2 1 Leg . | . . . Wheel 3 | 2 1 . Hover . | . . . Flight . | . . . Utility 4 | 1 3 . Device . | . . . Storage 2 | 1 1 . Processor 2 | . 2 . Hackware . | . . . Protection . | . . . Artifact . | . . . Weapon 8 | 2 3 3 Energy Gun 3 | 1 1 1 Energy Cannon 1 | . . 1 Ballistic Gun 2 | 1 1 . Ballistic Cannon 1 | . 1 . Launcher . | . . . Special Weapon 1 | . . 1 Impact Weapon . | . . . Slashing Weapon . | . . . Piercing Weapon . | . . . Special Melee Weapon . | . . . Unidentified Prototypes . | . . . Parts Lost 5 | . 2 3 Power 2 | . 1 1 Propulsion 1 | . 1 . Utility 1 | . . 1 Weapon 1 | . . 1 Highest Loss Streak 2 | . 1 2 To Critical Strikes . | . . . Average Backups 8 | 2 6 11 Power . | . . . Propulsion 1 | 1 1 1 Utility 5 | . 2 8 Weapon 1 | . 1 2 Tool/Special . | . . . Unused Backups 12 | . . 12 Power . | . . . Propulsion . | . . . Utility 10 | . . 10 Weapon 2 | . . 2 Tool/Special . | . . . Average Slot Usage (%) 95 | . 96 94 Engine 6 | . 9 3 Core 5 | . 4 5 Treads 17 | . 4 28 Wheel 10 | . 23 . Storage 14 | . 14 14 Processor 12 | . 10 14 Energy Gun 12 | . 14 10 Ballistic Gun 4 | . 10 . Ballistic Cannon 9 | . 3 14 Special Weapon 1 | . . 2 Peak Build Rating 12 | 6 10 12 Average Rating 8 | 3 7 9 On Entrance 5 | . 6 9 Avg Prop Armor Cover (%) . | . . . Naked Turns . | . . . Heaviest Build 31 | 12 30 31 Greatest Support 40 | 26 40 40 Greatest Overweight (x) 1 | . 1 . Average Overweight (x) . | . . . Largest Inventory Capacity 15 | 8 15 15 Average Capacity 14 | 6 14 15 Most Carried 15 | 4 10 15 Average Carried 8 | 2 6 11 Final Capacity 15 | 8 15 15 Final Carried 14 | 4 8 14 Class Distribution -------------------- 100% | Mutant Dominant Class ---------------- Mutant | -10/Materials Mutant | -10/Mines Resources | -11 -10 -10 ----------- Run | Yrd Mat Min Matter Collected 641 | 203 317 121 Remotely . | . . . Salvage Created 602 | . 496 106 Parts 39 | . 32 7 Haulers Intercepted . | . . . Recyclers Shooed . | . . . Parts Field Recycled . | . . . Retrieved Matter . | . . . Parts Self-Destructed . | . . . Prevented . | . . . Parts Restored . | . . . Kills | -11 -10 -10 ------- Run | Yrd Mat Min Combat Hostiles Destroyed 20 | . 14 6 Guns 16 | . 14 2 Cannons 2 | . . 2 AOE 2 | . . 2 Classes Destroyed 4 | . 3 1 Watcher 3 | . 3 . Swarmer 8 | . 6 2 Grunt 11 | . 8 3 Demolisher 1 | . . 1 Best Kill Streak 4 | . 4 2 Combat Bots Only 3 | . 3 2 Max Kills in Single Turn 2 | . 1 2 Gunslinging . | . . . Exploded 2 | . . 2 Melee . | . . . Uniques/NPCs Destroyed . | . . . Combat | -11 -10 -10 -------- Run | Yrd Mat Min Hostile Shots Fired 93 | . 67 26 Missed 32 | . 25 7 Hits 61 | . 42 19 Projectile 61 | . 42 19 AOE 8 | . . 8 Damage Taken 1182 | . 429 753 Core 259 | . 111 148 Absorbed by Shields . | . . . Core Remaining (%) 100 | 100 . . Volleys Fired 75 | . 49 26 Largest 2 | . 2 2 Hottest 105 | . 80 105 Shots Fired 141 | . 96 45 Gun 104 | . 93 11 Cannon 30 | . 3 27 Launcher . | . . . Special 7 | . . 7 Kinetic 68 | . 49 19 Thermal 73 | . 47 26 Explosive . | . . . Electromagnetic . | . . . Robot Hit Streak 17 | . 17 9 Robot Miss Streak 7 | . 7 4 Penetration Max . | . . . Secondary Targets . | . . . Shots Hit Robots 73 | . 48 25 Core Hits 34 | . 24 10 Critical Kills 1 | . 1 . Critical Parts Destroyed . | . . . Critical Strikes 7 | . 3 4 Burn 3 | . 2 1 Destroy 1 | . 1 . Blast 3 | . . 3 Melee Attacks . | . . . Impact . | . . . Slashing . | . . . Piercing . | . . . Sneak Attacks . | . . . Combat Hostiles . | . . . Follow-up Attacks . | . . . Damage Inflicted 1164 | . 630 534 Guns 753 | . 630 123 Cannons 333 | . . 333 Explosions 74 | . . 74 Melee . | . . . Ramming 4 | . . 4 Kinetic 562 | . 332 230 Thermal 598 | . 298 300 Explosive . | . . . Electromagnetic . | . . . Impact . | . . . Slashing . | . . . Piercing . | . . . Highest Corruption . | . . . Average Corruption . | . . . Corruption Purged . | . . . Corruption Blocked . | . . . Overload Shots . | . . . Overflow Damage . | . . . Projectiles . | . . . Explosions . | . . . Melee . | . . . Knockbacks 2 | . . 2 Impact . | . . . Kinetic 2 | . . 2 Secondary . | . . . Self-Inflicted Damage 39 | . . 39 Shots 1 | . . 1 Rammed 1 | . . 1 Targets Rammed 1 | . . 1 Kicked . | . . . Crushed . | . . . Highest Temperature 170 | . 96 170 Average Temperature 43 | . 30 60 Received Heat Transfer 198 | . 99 99 Siege Activations . | . . . Martial Activations . | . . . Shielding Activations . | . . . Robots Disrupted . | . . . Combat Hostiles . | . . . Robots Corrupted . | . . . Combat Hostiles . | . . . Parts Fried . | . . . Impact Corruptions . | . . . Robots Melted . | . . . Combat Hostiles . | . . . Parts Melted . | . . . Heat Transferred 1691 | . 1036 655 Parts Sabotaged . | . . . Parts Stolen . | . . . Parts Stripped . | . . . Power Chain Reactions . | . . . Alert | -11 -10 -10 ------- Run | Yrd Mat Min Maximum Alert Level . | . . . Low Security (%) 100 | 100 100 100 Level 1 . | . . . Level 2 . | . . . Level 3 . | . . . Level 4 . | . . . Level 5 . | . . . High Security . | . . . Max Security . | . . . Peak Influence 164 | . 164 138 Initial 14 | . . 14 Average 59 | . 96 31 Influence Increases 731 | . 438 293 Destroy 0b10 Robot/C 420 | . 280 140 Destroy 0b10 Robot/NC 15 | . 15 . Destroy Leader 96 | . 56 40 Allied During Kill 1 | . . 1 Successful Hack 10 | . 10 . Disable Machine 90 | . 30 60 Destroy Structure 24 | . 2 22 Lose Combat Pursuer 75 | . 45 30 Influence Decreases 666 | . 400 266 Entered New Map 24 | . . 24 Time Decay 602 | . 380 222 Lost Part 40 | . 20 20 Squads Dispatched 2 | . 2 . Investigation 2 | . 2 . Extermination . | . . . Reinforcement . | . . . Assault . | . . . Garrison . | . . . Intercept . | . . . Searches Triggered . | . . . Construction Impeded . | . . . Haulers Reinforced . | . . . Active Scanning Responses . | . . . Cargo Convoy Interrupts . | . . . Stealth | -11 -10 -10 --------- Run | Yrd Mat Min Distress Signals 3 | . 3 . Communications Jammed . | . . . Distress Signals . | . . . Times Spotted 29 | . 20 9 Peak Tracking Total 6 | . 6 2 Tactical Retreats 3 | . 1 2 Traps | -11 -10 -10 ------- Run | Yrd Mat Min Traps Triggered 4 | . 4 . Indirectly . | . . . Trap Hack Attempts . | . . . Triggered . | . . . Disarmed . | . . . Reprogrammed . | . . . Reused . | . . . Traps Extracted . | . . . Installed . | . . . Triggered . | . . . Machines | -11 -10 -10 ---------- Run | Yrd Mat Min Machines Disabled 6 | . 2 4 Max in Single Turn 4 | . 1 4 Machines Repaired . | . . . Machines Dismantled . | . . . Machines Sabotaged . | . . . Overloaded Fab Kills . | . . . Hacking | -11 -10 -10 --------- Run | Yrd Mat Min Machines Accessed 9 | . 9 . Terminals 7 | . 7 . Fabricators . | . . . Repair Stations . | . . . Recycling Units 2 | . 2 . Scanalyzers . | . . . Garrison Access . | . . . Total Hacks 17 | . 17 . Successful 8 | . 8 . Failed 9 | . 9 . Catastrophic 2 | . 2 . Database Lockouts . | . . . Manual . | . . . Terminals 14 | . 14 . Fabricators . | . . . Repair Stations . | . . . Recycling Units 3 | . 3 . Scanalyzers . | . . . Garrison Access . | . . . Terminal Hacks 6 | . 6 . Record 1 | . 1 . Prototype ID Bank 2 | . 2 . Locate Traps 1 | . 1 . Transport Status 1 | . 1 . Zone Layout 1 | . 1 . Fabricator Hacks . | . . . Repair Station Hacks . | . . . Recycling Unit Hacks 2 | . 2 . Report Inventory 2 | . 2 . Scanalyzer . | . . . Garrison Access Hacks . | . . . Unauthorized Hacks . | . . . Terminals . | . . . Fabricators . | . . . Repair Stations . | . . . Recycling Units . | . . . Scanalyzers . | . . . Garrison Access . | . . . Data Cores Recovered . | . . . Used . | . . . Hacking Detections 5 | . 5 . Full Trace Events . | . . . Feedback Events . | . . . Feedback Blocked . | . . . Robot Schematics Acquired . | . . . Robots Built . | . . . Authchips . | . . . Time . | . . . Total Robot Build Rating . | . . . Part Schematics Acquired . | . . . Parts Built . | . . . Authchips . | . . . Time . | . . . Total Part Build Rating . | . . . Part Studies Acquired . | . . . Parts Repaired . | . . . Time . | . . . Parts Recycled . | . . . Recycled Matter . | . . . Retrieved Matter . | . . . Retrieved Components . | . . . Parts Scanalyzed . | . . . Part Schematics Acquired . | . . . Parts Damaged . | . . . Bothacking | -11 -10 -10 ------------ Run | Yrd Mat Min Used RIF Installer . | . . . Robots Hacked . | . . . Non-combat . | . . . Combat . | . . . Robot Hacks Applied . | . . . Relay Couplers Released . | . . . Fabnet Peak Effective % . | . . . Robots Rewired . | . . . Allies Hacked . | . . . Hacks Repelled . | . . . Allies | -11 -10 -10 -------- Run | Yrd Mat Min Total Allies 1 | . . 1 Largest Group 1 | . . 1 Highest-Rated Group 31 | . . 31 Highest-Rated Ally 31 | . . 31 Total Orders . | . . . Ally Attacks 3 | . . 3 Total Damage 22 | . . 22 Kills 1 | . . 1 Allies Corrupted . | . . . Allies Melted . | . . . Intel | -11 -10 -10 ------- Run | Yrd Mat Min Active Infowar (turns) . | . . . Robot Analysis Total . | . . . Derelict Logs Recovered 1 | . . 1 Drone Launches . | . . . Drone Recoveries . | . . . Exploration | -11 -10 -10 ------------- Run | Yrd Mat Min Turns Passed 2437 | 59 1089 1289 Spaces Moved 1530 | 50 764 716 Core 4 | 4 . . Treads 821 | . 105 716 Legs . | . . . Wheels 705 | 46 659 . Hover . | . . . Flight . | . . . Fastest Speed 50 | 50 90 160 Average Speed 133 | 86 111 160 Slowest Speed 160 | 90 160 160 Overloaded Moves . | . . . Propulsion Burnouts . | . . . Robots Hopped . | . . . Potential Cave-ins . | . . . Cave-ins Triggered 1 | . . 1 Exploration Rate (%) 65 | 3 94 98 Regions Visited 2 Branch Regions 1 Pre-discovered Areas . | . . . Known Exits Taken . | . . . Unknown Exits Taken 2 | 1 1 . Scrap Searched 3 | . . 3 Spaces Dug 7 | . . 7 Terrain Destroyed 26 | . . 26 Melee . | . . . Projectile 7 | . . 7 AOE 19 | . . 19 Terrain Rammed . | . . . Walls Destroyed . | . . . Machines Disabled . | . . . Actions | -11 -10 -10 --------- Run | Yrd Mat Min Total 1768 | 65 902 801 Wait 98 | . 60 38 Move 1528 | 49 763 716 Hop . | . . . Pick Up 35 | 10 14 11 Fast Attach . | . . . Attach 13 | 6 6 1 Detach . | . . . Swap 10 | . 6 4 Drop 8 | . 4 4 Fire 75 | . 49 26 Melee . | . . . Ram . | . . . Kick . | . . . Crush 1 | . . 1 Escape Stasis . | . . . Rewire . | . . . Trap . | . . . Miscellaneous . | . . . Route ------- -11/Scrapyard -10/Materials (discovered 5 exits: [*Mat x3] / [*Min] / [*Sub]) -10/Mines (discovered 2 exits: [*Mat x2]) History --------- Turn | Location | Event 14 | -11/Scrapyard | Discovered new exit (range 15) 60 | -11/Scrapyard | Entered Materials 297 | -10/Materials | Discovered new exit (range 14) 337 | -10/Materials | Build established: Mutant 507 | -10/Materials | Discovered new exit (range 16) 670 | -10/Materials | Discovered new exit (range 9) 674 | -10/Materials | Discovered new exit (range 5) 924 | -10/Materials | Discovered new exit (range 16) 1149 | -10/Materials | Entered Mines 1311 | -10/Mines | Assembled infested the area 1369 | -10/Mines | Learned Materials garrison access intel 1385 | -10/Mines | Discovered new exit (range 8) 1576 | -10/Mines | Joined a pair of Derelicts in attacking an 0b10 outpost 1661 | -10/Mines | Core integrity fell below 50% 1972 | -10/Mines | Discovered new exit (range 8) 2227 | -10/Mines | Received a Mining Laser from a helpful Derelict 2439 | -10/Mines | Crushed by falling debris 2439 | -10/Mines | Smashed by cave-in Last Messages --------------- 02225_ A derelict emerges from the shadows: "What are you doing alone down here?" 02227_ 84-B23(g): "And why aren't you carrying a mining laser?! Certainly you don't want THEM to uncover you when the ceiling comes crashing down? Here, take my spare." 02230_ 84-B23(g): "You're apparently new around these parts, I'll cover you." Move into an ally to swap places with them. 02233_ 84-B23(g): "Mining lasers are a lot more useful than you might think..." 02236_ Acquired Mining Laser. 02248_ Dropped Mining Claw. 02321_ Acquired 10 matter. 02439_ The unstable cave ceiling collapses. 02439_ Crushed by falling debris. 02439_ Targeting Computer destroyed. 02439_ System corrupted by crushing effect (+1). 02439_ Mining Laser destroyed. 02439_ System corrupted by crushing effect (+1). Map ----- +----------------------------------------------------+ | ????## #####?????# ### % | | ????# ##?????????# | | ????# #??????????##### | | ???## #??????????????# < | | ???# ##?###?????????# | | ??## ## ##????????# | | ??# ##???????# | | ?## #???????# | | ?# #???????###### | | ?# ### ##????????????# | | ?# ##?### #####?????????????# | | ?## ##???# #######???????????# | | ??## ##### #???????????## | | ???## ##### #######??????? | | ????## ###### #???# #??????# | | ?????# ?????# #???####### #?????## | | ?????## #?????# #?????????# #?????# | | ??????##??????# #?????????# #?????# | | ??????????##### #?????????# #????## | | ?????????## ## ##????????# #????# | | ?????????# ##???????# #????# | | ?????????# #####???# ###### | | ?????????## ##??# | | ??????????## #??######### | | ???????????##g #??????????## | | ??????????##@### ##???????????? | | ??????????# ##?## ##????????????? | | ??????????###???# #?????????????? | | ???????????????# ##?????????????? | | ???????????????# ##??????????????? | | ???????????????## ##???????????????? | | ????????????????####????????????????? | | ????????????????????????????????????? | | | | | | | | | | | | | | | | | | | | | | | | | | | | | | | | | | | +----------------------------------------------------+ Best States ------------- Heat Dissipation 25 Energy Generation 14 Energy Capacity 160 Matter Stores 300 Matter Capacity 300 Sight Range 16 Terrain Scan Density 10 Evasion (%) 42 Targeting Accuracy 5 Recoil Reduction 2 Item Schematics ----------------- None Robot Schematics ------------------ None Fabricated ------------ Nothing Repaired ---------- Nothing Studied --------- None Alien Tech Used ----------------- None Achievements -------------- None Challenges ------------ None Game ------ Seed CombatHeavyStick Manual? 0 Play Time 00:21:01 Cumulative 32.7 hours Start 2026.08.25 @ 12:46:37 End 2026.08.25 @ 13:24:15 Sessions 1 Manual Loads 0 Difficulty Rogue Special Mode None Game No. 49 Rogue 49 Adventurer 0 Explorer 0 Win Type - Total 0 Types 0/0/0/0/0/0/0/0/0/0 Lore% 17 Gallery% 21 Achievement% 18 Wizard Run 0 Options --------- Layout 1 ASCII 0 Keyboard 0 Movement Mouse Keybinds 0 Fullscreen 1 Font 16/SmallcapsGlow Map View 50x40 Zoom Use 0% Tactical HUD 1 Map Filters NONE Filters NONE Steam SD RUN: 431d84ae-c4a7-43ac-93de-6a3c978e16c8